bitfinex/quotes_ETHUSD_20241023
["timestamp","ask_amount","ask_price","bid_price","bid_amount"]
[1729689905059,0.03638604,2573.8,2573.7,3.88545]
[1729689905463,3.885,2574.0,2573.6,3.94383711]
[1729689905663,3.885,2574.0,2573.6,3.94381711]
[1729689905890,0.03638678,2573.9,2573.6,3.94381711]
[1729689906279,0.03638678,2573.9,2573.6,3.94379711]
[1729689906729,0.03638678,2573.9,2573.6,7.82932711]
[1729689906935,0.03638678,2573.9,2573.7,3.88542]
[1729689907138,3.88471,2574.2,2573.8,3.8853]
[1729689907348,0.55,2574.1,2573.8,3.8853]
[1729689907638,0.03638736,2574.1,2573.8,3.8853]
[1729689907931,6.88472,2574.2,2573.8,3.8853]
[1729689908299,0.03638736,2574.1,2573.8,3.8853]
[1729689910790,0.03638736,2574.1,2573.8,3.88523]
[1729689912036,0.03638736,2574.1,2573.7,4.0798245]
[1729689912293,0.03638736,2574.1,2573.7,3.88543]
[1729689912493,3.92127736,2574.1,2573.7,3.88543]
[1729689914151,3.92127736,2574.1,2573.8,0.19439524]
[1729689914371,0.03638736,2574.1,2573.7,3.88537]
[1729689914662,0.03638736,2574.1,2573.8,0.19438577]
[1729689914961,3.92125736,2574.1,2573.7,4.80858981]
[1729689915157,3.92125736,2574.1,2573.8,0.19439284]
[1729689915308,3.92125736,2574.1,2573.7,4.80858981]
[1729689915509,3.92125736,2574.1,2573.8,0.19439242]
[1729689915815,3.92125736,2574.1,2573.7,3.88537]
[1729689916018,3.92125736,2574.1,2573.8,0.19439422]
[1729689916325,3.92125736,2574.1,2573.9,0.19439346]
[1729689916514,3.92125736,2574.1,2573.7,4.12836183]
[1729689916715,3.88505,2574.0,2573.8,0.19439325]
[1729689916942,0.03650298,2573.9,2573.7,0.24299183]
[1729689917141,7.7698,2574.1,2573.8,0.19439529]
[1729689917457,0.03650327,2574.0,2573.9,0.19439529]
[1729689917626,0.03650327,2574.0,2573.9,0.25266898]
[1729689922134,0.03650327,2574.0,2573.9,0.19439529]
[1729689923045,3.88473,2574.2,2573.9,0.49565611]
[1729689923245,0.03649801,2574.0,2573.9,0.05827387]
[1729689923431,3.88473,2574.2,2573.9,0.49564736]
[1729689923775,3.88473,2574.2,2573.9,0.05827387]
[1729689923939,0.0365881,2574.1,2574.0,0.19438014]
[1729689924341,0.0365881,2574.1,2574.0,0.43736244]
[1729689924657,0.0365881,2574.1,2574.0,0.19438014]
[1729689925169,0.0365881,2574.1,2574.0,0.43735337]
[1729689925972,0.0365881,2574.1,2574.0,4.76043809]
[1729689926154,3.88413,2574.6,2574.1,3.88474]
[1729689926332,3.88413,2574.6,2574.0,5.34075798]
[1729689926333,0.03547134,2574.5,2574.4,3.88437]
[1729689926543,6.88385,2574.8,2574.4,4.07874326]
[1729689926738,0.03547192,2574.7,2574.5,0.19437326]
[1729689926921,3.88395,2574.7,2574.6,0.19434687]
[1729689927127,3.91942192,2574.7,2574.3,3.88454]
[1729689927363,0.03547192,2574.7,2574.4,4.64591]
[1729689927567,3.88371,2574.9,2574.5,3.88417]
[1729689927787,3.91938221,2574.8,2574.5,0.19434521]
[1729689928073,3.91938221,2574.8,2574.6,0.19434521]
[1729689928222,3.91938221,2574.8,2574.4,0.7616]
[1729689928428,3.88409,2574.7,2574.5,0.19434516]
[1729689928675,3.88404,2574.7,2574.2,4.66898]
[1729689928874,0.03547163,2574.6,2574.3,4.32177223]
[1729689929174,0.03547163,2574.6,2574.4,0.19435444]
[1729689929388,0.03547163,2574.6,2574.5,0.19435444]
[1729689929528,3.88382,2574.8,2574.5,0.19435444]
[1729689929732,0.03574653,2574.7,2574.3,3.88442]
[1729689930029,3.88421,2574.6,2574.4,0.19434564]
[1729689930264,3.8844,2574.4,2574.0,4.64118]
[1729689930464,3.8844,2574.4,2574.1,0.4373052]
[1729689930768,0.03579289,2574.3,2574.2,0.19436573]
[1729689931134,3.92034289,2574.3,2574.2,0.19436573]
[1729689931536,3.92034289,2574.3,2574.0,0.3012297]
[1729689931537,0.03579289,2574.3,2574.0,0.05826558]
[1729689931740,0.03579289,2574.3,2574.1,0.19437781]
[1729689931930,0.03579289,2574.3,2574.0,3.94325558]
[1729689932150,0.03579289,2574.3,2574.1,0.19437397]
[1729689932358,0.03579289,2574.3,2574.2,0.19437397]
[1729689932725,3.92034289,2574.3,2574.2,0.19437397]
[1729689933258,3.92034289,2574.3,2574.0,0.30123277]
[1729689933454,0.03579289,2574.3,2574.1,0.19437648]
[1729689933640,0.03579289,2574.3,2574.2,0.19437648]
[1729689934046,3.92034289,2574.3,2574.0,0.05826558]
[1729689934376,0.03487068,2574.3,2574.0,0.05826558]
[1729689934585,3.91942068,2574.3,2574.1,0.19438195]
[1729689934750,3.91942068,2574.3,2574.0,0.05826558]
[1729689934947,3.91942068,2574.3,2574.1,0.1943791]
[1729689935265,3.91942068,2574.3,2574.0,0.05826558]
[1729689935435,3.91942068,2574.3,2574.1,0.1943786]
[1729689935635,3.91942068,2574.3,2574.0,0.05826558]
[1729689935863,3.91942068,2574.3,2574.1,0.19437988]
[1729689936065,3.91942068,2574.3,2574.0,0.05826558]
[1729689936379,3.91942068,2574.3,2574.1,0.19437985]
[1729689936594,3.91942068,2574.3,2574.0,0.05826558]
[1729689936983,3.91942068,2574.3,2574.1,0.19437818]
[1729689937184,3.91942068,2574.3,2574.0,0.05826558]
[1729689937354,3.91942068,2574.3,2574.1,0.1943778]
[1729689937566,3.91942068,2574.3,2574.0,0.05826558]
[1729689937807,3.91942068,2574.3,2574.1,0.19437995]
[1729689937958,3.91942068,2574.3,2574.0,0.05826558]
[1729689938283,3.91942068,2574.3,2574.1,0.19437802]
[1729689938594,3.91942068,2574.3,2574.0,0.05826558]
[1729689938801,3.91942068,2574.3,2574.1,0.19437867]
[1729689939001,3.91942068,2574.3,2574.0,0.05826558]
[1729689939212,3.91942068,2574.3,2574.1,0.19437869]
[1729689939358,3.91942068,2574.3,2574.0,0.05826558]
[1729689939699,3.91942068,2574.3,2574.1,0.19437856]
[1729689939902,3.91942068,2574.3,2574.0,0.05826558]
[1729689940254,3.91942068,2574.3,2574.1,0.19437877]
[1729689940610,3.91942068,2574.3,2574.0,0.05826558]
[1729689940901,7.80407068,2574.3,2574.1,0.19437127]
[1729689941074,3.91942068,2574.3,2574.0,0.05826558]
[1729689941269,7.80405068,2574.3,2574.1,0.19438043]
[1729689941476,0.03487068,2574.3,2574.2,0.19437347]
[1729689943679,0.03487068,2574.3,2574.0,3.94326558]
[1729689943858,3.88446,2574.4,2574.1,0.19436811]
[1729689944072,0.55,2574.5,2574.1,4.63815]
[1729689944073,0.03580943,2574.2,2574.1,4.63815]
[1729689944277,3.88432,2574.5,2574.1,0.94766751]
[1729689944516,0.03581456,2574.2,2574.1,0.7533]
[1729689944815,0.03581456,2574.2,2574.1,0.94766908]
[1729689945011,3.88432,2574.5,2574.1,1.9110864]
[1729689945215,0.03581514,2574.4,2574.2,0.19436908]
[1729689945417,0.03581514,2574.4,2574.3,0.19436908]
[1729689945621,3.88412,2574.6,2574.3,0.19436908]
[1729689945789,0.03583122,2574.5,2574.3,1.16242372]
[1729689945993,0.03583122,2574.5,2574.4,0.19436908]
[1729689947277,0.03583122,2574.5,2574.3,0.96805464]
[1729689947736,0.03583122,2574.5,2574.4,0.19436071]
[1729689948198,3.88407,2574.7,2574.4,0.19436071]
[1729689948403,0.03580511,2574.6,2574.5,0.05825951]
[1729689949104,3.91989511,2574.6,2574.5,0.05825951]
[1729689950075,0.03580511,2574.6,2574.5,0.05825951]
[1729689950284,0.03580511,2574.6,2574.5,4.13684976]
[1729689950477,3.8838,2574.8,2574.5,1.2310602]
[1729689950674,0.03593711,2574.6,2574.5,0.05825951]
[1729689950877,3.88403,2574.7,2574.5,0.25261061]
[1729689951073,0.03593711,2574.6,2574.5,0.05825951]
[1729689951508,0.03593711,2574.6,2574.5,0.25260662]
[1729689951983,7.7677,2574.8,2574.5,0.25260662]
[1729689952183,0.03593733,2574.7,2574.6,0.19434711]
[1729689952378,3.88382,2574.8,2574.6,0.19434711]
[1729689952606,0.03593733,2574.7,2574.5,0.05825951]
[1729689952820,3.88382,2574.8,2574.6,0.19434346]
[1729689953016,0.03593733,2574.7,2574.5,0.05825951]
[1729689953179,3.88382,2574.8,2574.6,0.19433898]
[1729689953374,0.03520428,2574.7,2574.5,5.19318246]
[1729689953580,3.88353,2575.0,2574.6,4.07843025]
[1729689953821,0.03521014,2574.9,2574.7,0.19434025]
[1729689954078,0.03521014,2574.9,2574.7,3.88392]
[1729689954419,3.88334,2575.1,2574.7,3.88392]
[1729689954719,0.03454378,2575.0,2574.7,3.88392]
[1729689955017,0.03454378,2575.0,2574.8,0.7781]
[1729689955387,0.03454378,2575.0,2574.9,0.19432055]
[1729689955585,3.88326,2575.2,2574.9,0.19432055]
[1729689955783,0.03464523,2575.1,2574.8,4.66182]
[1729689956085,0.03464523,2575.1,2574.9,0.19431382]
[1729689956287,0.03464523,2575.1,2574.8,4.66179]
[1729689956544,3.88305,2575.3,2574.9,4.07794207]
[1729689956859,3.8832,2575.2,2574.8,1.3225431]
[1729689956984,3.91784552,2575.2,2574.8,1.3225431]
[1729689957183,3.91784552,2575.2,2574.9,0.19431136]
[1729689957445,3.91784552,2575.2,2574.8,1.3225431]
[1729689957741,3.91784552,2575.2,2574.9,0.19431369]
[1729689957893,3.88336,2575.1,2574.8,0.7781]
[1729689958291,0.03475058,2575.0,2574.8,0.7781]
[1729689958727,3.91832058,2575.0,2574.6,0.2428899]
[1729689959025,3.88372,2574.9,2574.7,0.1943201]
[1729689959231,0.03472887,2574.8,2574.5,4.69908951]
[1729689959445,3.88401,2574.7,2574.6,0.19432095]
[1729689959590,3.91859887,2574.8,2574.4,3.88438]
[1729689959795,3.91859887,2574.8,2574.5,0.19434285]
[1729689959996,3.88401,2574.7,2574.3,4.64113]
[1729689960222,0.03472829,2574.6,2574.4,0.19434292]
[1729689960396,0.03472829,2574.6,2574.5,0.19434292]
[1729689960594,3.88382,2574.8,2574.5,0.19434292]
[1729689960833,0.03472858,2574.7,2574.4,3.88435]
[1729689960995,0.03472858,2574.7,2574.6,0.19433772]
[1729689961194,3.88366,2574.9,2574.6,0.25259055]
[1729689961427,3.91845154,2574.8,2574.6,0.05825283]
[1729689961812,0.03459154,2574.8,2574.6,0.05825283]
[1729689962008,3.88355,2575.0,2574.6,0.05825283]
[1729689962294,0.03459711,2574.9,2574.7,0.8087]
[1729689963956,3.91823711,2574.9,2574.7,0.8087]
[1729689964163,3.91823711,2574.9,2574.7,5.16771928]
[1729689964164,0.03459711,2574.9,2574.7,5.16771928]
[1729689964368,0.03459711,2574.9,2574.7,1.28381928]
[1729689964569,3.8834,2575.1,2574.7,1.28381928]
[1729689964719,0.03477116,2574.8,2574.6,7.82628283]
[1729689964919,3.88351,2575.0,2574.6,3.88409]
[1729689965124,0.03477087,2574.7,2574.6,3.88409]
[1729689965320,3.8832,2575.2,2574.7,0.05824888]
[1729689965526,3.88322,2575.2,2574.8,4.91123838]
[1729689965728,3.88305,2575.3,2574.8,1.71854873]
[1729689965950,3.88322,2575.2,2574.8,4.71696]
[1729689966352,3.88307,2575.3,2574.8,4.71687]
[1729689966535,3.8829,2575.4,2575.0,3.88336]
[1729689967445,3.88266,2575.6,2575.1,0.7904]
[1729689967646,3.88266,2575.6,2575.1,4.67372]
[1729689967647,3.88275,2575.5,2575.1,4.67372]
[1729689967860,3.88256,2575.7,2575.1,1.257772]
[1729689968050,3.88256,2575.7,2575.1,0.7904]
[1729689968051,3.88259,2575.6,2575.1,0.7904]
[1729689968366,3.88259,2575.6,2575.2,0.19429677]
[1729689968573,3.88256,2575.7,2575.2,0.19429677]
[1729689968770,0.03447098,2575.5,2575.4,3.88289]
[1729689968942,0.03447126,2575.6,2575.4,3.88289]
[1729689969263,3.88222,2575.9,2575.4,3.88289]
[1729689969264,0.03447098,2575.5,2575.4,3.88289]
[1729689969567,0.03447098,2575.5,2575.3,4.69211]
[1729689969769,3.88238,2575.8,2575.3,4.69211]
[1729689969978,0.03479809,2575.4,2575.3,4.69211]
[1729689970126,3.88238,2575.8,2575.3,4.88637468]
[1729689970323,3.88238,2575.8,2575.4,0.87695547]
[1729689970723,3.88222,2575.9,2575.5,3.88273]
[1729689971760,3.8823,2575.8,2575.4,5.01233352]
[1729689971932,3.8823,2575.8,2575.4,1.12945352]
[1729689972132,3.8823,2575.8,2575.4,1.1294508]
[1729689972330,3.8823,2575.8,2575.4,0.93519433]
[1729689972536,3.88222,2575.9,2575.5,0.95102143]
[1729689972877,3.88222,2575.9,2575.5,4.83375143]
[1729689973273,3.88235,2575.8,2575.5,0.95102143]
[1729689974067,3.88235,2575.8,2575.4,0.05823886]
[1729689976341,3.88222,2575.9,2575.5,3.88273]
[1729689976658,3.88229,2575.8,2575.6,0.8264]
[1729689977070,3.88199,2576.0,2575.6,0.8264]
[1729689977238,3.88252,2575.7,2575.2,1.00365632]
[1729689977444,3.8827,2575.6,2575.2,0.8094]
[1729689977686,3.88281,2575.5,2575.2,1.69643863]
[1729689978356,3.8829,2575.4,2575.2,0.8094]
[1729689978581,3.8828,2575.5,2575.2,0.8094]
[1729689978960,7.76566,2575.5,2575.2,0.8094]
[1729689979490,3.88294,2575.4,2575.2,0.8094]
[1729689979668,3.88327,2575.2,2575.0,1.05878019]
[1729689979844,3.88326,2575.2,2575.0,0.8645]
[1729689982768,3.88305,2575.3,2575.0,0.8645]
[1729689983290,3.88322,2575.2,2575.0,0.29429949]
[1729689983474,3.88289,2575.4,2575.0,0.1]
[1729689983691,3.88289,2575.4,2575.0,0.29429755]
[1729689983692,0.03518284,2575.1,2575.0,0.29429755]
[1729689983860,3.88289,2575.4,2575.0,0.1]
[1729689984059,0.03518284,2575.1,2575.0,0.1]
[1729689984296,3.88289,2575.4,2575.0,0.1]
[1729689984456,0.03518284,2575.1,2575.0,0.1]
[1729689984656,3.88304,2575.3,2575.0,0.29429534]
[1729689984868,0.03498845,2575.1,2575.0,0.29429805]
[1729689985499,3.88261,2575.6,2575.0,5.06114285]
[1729689985716,3.88298,2575.4,2575.1,0.95949805]
[1729689985997,3.88298,2575.4,2575.1,0.7652]
[1729689986197,3.88298,2575.4,2575.2,0.95154648]
[1729689986373,3.88298,2575.4,2575.1,0.7652]
[1729689987192,3.88259,2575.6,2575.2,0.19428373]
[1729689987355,7.76527,2575.6,2575.3,0.05824094]
[1729689987560,3.88259,2575.6,2575.3,0.05824094]
[1729689987914,7.76527,2575.6,2575.3,0.05824094]
[1729689988201,3.88259,2575.6,2575.3,0.05824094]
[1729689988497,7.76533,2575.6,2575.3,0.05824094]
[1729689988657,3.88274,2575.5,2575.3,0.05824094]
[1729689990416,3.88296,2575.4,2575.1,0.7652]
[1729689990713,3.88275,2575.5,2575.1,4.64853]
[1729689991574,3.88275,2575.5,2575.2,0.19429027]
[1729689991776,3.88275,2575.5,2575.1,4.64853]
[1729689992012,3.88275,2575.5,2575.2,0.1942892]
[1729689992307,3.88275,2575.5,2575.2,0.88262192]
[1729689992892,3.8829,2575.4,2575.1,0.7652]
[1729689993088,3.8829,2575.4,2575.2,0.1942918]
[1729689993280,3.88277,2575.5,2575.3,0.05823549]
[1729689993485,3.88277,2575.5,2575.1,0.7652]
[1729689993709,3.88277,2575.5,2575.1,4.64846]
[1729689993913,3.88277,2575.5,2575.2,1.05747989]
[1729689994217,3.88277,2575.5,2575.3,0.05823705]
[1729689994411,5.62106689,2575.5,2575.3,0.25252307]
[1729689994570,5.62106689,2575.5,2575.3,0.05823705]
[1729689994966,3.88277,2575.5,2575.3,0.05823705]
[1729689995182,5.62089689,2575.6,2575.3,0.05823705]
[1729689995411,5.62089689,2575.6,2575.3,0.63951201]
[1729689995577,5.62089689,2575.6,2575.4,0.19428467]
[1729689995776,5.62089689,2575.6,2575.3,0.05823705]
[1729689996076,5.62089689,2575.6,2575.4,0.19428512]
[1729689996274,5.62089689,2575.6,2575.3,0.05823705]
[1729689996511,3.88222,2575.9,2575.5,3.88274]
[1729689996756,3.88202,2576.0,2575.6,4.07676786]
[1729689996867,5.62020689,2576.1,2575.7,0.95785666]
[1729689997209,3.88174,2576.2,2575.8,0.19425666]
[1729689997514,5.62004689,2576.2,2575.7,4.64595]
[1729689997807,1.73829689,2576.1,2575.8,4.92931381]
[1729689998019,1.73829689,2576.1,2575.9,0.19423981]
[1729689998310,3.88175,2576.2,2575.7,4.646]
[1729689998311,3.8817,2576.2,2575.7,4.646]
[1729689998481,3.8817,2576.2,2575.8,0.19423962]
[1729689998688,0.03522356,2576.1,2575.9,0.19423962]
[1729689998904,3.91707356,2576.1,2575.8,0.89655363]
[1729689999901,0.03522356,2576.1,2575.9,0.19423991]
[1729690000107,0.03522356,2576.1,2575.9,0.05822866]
[1729690000470,3.91706356,2576.1,2575.9,0.05822866]
[1729690001415,3.88198,2576.0,2575.9,0.05822866]
[1729690001621,4.46723491,2576.0,2575.9,0.05822866]
[1729690002496,4.46723491,2576.0,2575.6,0.43704494]
[1729690002497,3.88228,2575.8,2575.7,0.19424442]
[1729690002799,3.88228,2575.8,2575.3,0.13189966]
[1729690002800,3.88274,2575.5,2575.3,1.06103757]
[1729690003030,0.03523206,2575.4,2575.3,0.05823705]
[1729690003179,3.91812206,2575.4,2575.3,0.05823705]
[1729690003604,0.03523206,2575.4,2575.3,0.05823705]
[1729690003783,15.35,2576.0,2575.4,3.88274]
[1729690003784,3.8822,2575.9,2575.4,3.88274]
[1729690003995,0.03407344,2575.8,2575.5,4.07692442]
[1729690004336,3.88185,2576.1,2575.6,0.19428442]
[1729690004337,3.88215,2575.9,2575.6,0.19428442]
[1729690004542,0.03407315,2575.7,2575.5,3.88272]
[1729690004836,3.88205,2576.0,2575.6,4.07681401]
[1729690005045,3.88214,2575.9,2575.5,3.88272]
[1729690005335,3.88214,2575.9,2575.6,0.63221612]
[1729690005496,3.88214,2575.9,2575.6,0.43795661]
[1729690006303,3.88185,2576.1,2575.7,0.19425439]
[1729690006507,3.88199,2576.0,2575.6,0.43795661]
[1729690006710,3.88218,2575.9,2575.6,0.43795661]
[1729690007501,3.0230535,2576.3,2575.4,0.24281625]
[1729690007502,0.55,2575.5,2575.4,0.24281625]
[1729690007697,0.55,2575.5,2575.1,0.07360469]
[1729690007698,4.43274,2575.5,2575.1,4.12614625]
[1729690007899,0.55,2575.4,2575.2,0.19428731]
[1729690008100,4.43301,2575.4,2574.9,3.8835]
[1729690008333,4.43301,2575.4,2575.0,0.57788]
[1729690008496,0.55,2575.4,2575.1,0.19429979]
[1729690008701,0.55,2575.4,2575.0,0.1]
[1729690008910,4.43297,2575.4,2575.1,0.19429321]
[1729690009117,4.43297,2575.4,2575.2,0.19429628]
[1729690009313,4.43297,2575.4,2575.0,0.1]
[1729690009546,4.43297,2575.4,2575.1,0.19429909]
[1729690009712,4.43297,2575.4,2575.0,0.996367]
[1729690009923,4.43297,2575.4,2575.1,0.19429917]
[1729690010102,4.43297,2575.4,2575.0,0.996367]
[1729690010447,4.43297,2575.4,2575.1,0.19429914]
[1729690010644,4.43297,2575.4,2575.0,0.996367]
[1729690010800,4.43297,2575.4,2575.1,0.19429787]
[1729690011001,4.43297,2575.4,2575.0,0.996367]
[1729690011200,4.43297,2575.4,2575.1,0.19429728]
[1729690011445,3.88304,2575.3,2575.0,0.996367]
[1729690011597,3.88304,2575.3,2575.1,0.19429502]
[1729690011805,0.55,2575.4,2575.0,0.996367]
[1729690011806,0.55,2575.4,2575.2,0.19429502]
[1729690012013,3.88304,2575.3,2575.0,0.996367]
[1729690012211,3.88304,2575.3,2575.1,0.19429748]
[1729690012421,3.88304,2575.3,2575.0,0.996367]
[1729690012725,4.4329,2575.4,2575.1,0.19429955]
[1729690012931,15.33910189,2575.9,2575.1,0.19429955]
[1729690012932,3.88267,2575.6,2575.1,0.92006419]
[1729690013136,0.55,2575.6,2575.2,0.96068995]
[1729690013337,4.43266,2575.6,2575.3,0.25252818]
[1729690013512,4.43266,2575.6,2575.3,0.05823823]
[1729690013709,0.03400404,2575.5,2575.3,0.05823823]
[1729690013909,0.03400404,2575.5,2575.4,4.07715846]
[1729690014161,15.6822,2575.9,2575.4,4.07715846]
[1729690014323,3.88194,2576.1,2575.6,0.7595]
[1729690014656,3.88215,2575.9,2575.6,0.7595]
[1729690015655,3.55215539,2576.3,2575.6,0.7595]
[1729690015855,3.88199,2576.0,2575.6,5.13048808]
[1729690016155,3.88199,2576.0,2575.7,0.1942516]
[1729690016361,4.43186,2576.1,2575.7,3.88243]
[1729690016548,4.43186,2576.1,2575.6,5.13056808]
[1729690016751,4.43186,2576.1,2575.7,0.19424834]
[1729690016917,3.882,2576.0,2575.6,5.13056808]
[1729690017118,3.882,2576.0,2575.7,0.19425243]
[1729690017414,3.88198,2576.0,2575.6,0.7595]
[1729690017819,3.88198,2576.0,2575.7,0.19425535]
[1729690018019,3.88198,2576.0,2575.6,4.64207]
[1729690018221,3.88198,2576.0,2575.7,0.19425256]
[1729690018415,3.88198,2576.0,2575.6,4.64207]
[1729690018620,3.88198,2576.0,2575.7,0.19425132]
[1729690018820,4.43186,2576.1,2575.6,5.51882945]
[1729690018821,0.55,2576.1,2575.6,5.51882945]
[1729690019068,3.88205,2576.0,2575.7,0.19424942]
[1729690019222,4.43186,2576.1,2575.6,5.51882945]
[1729690019427,4.43186,2576.1,2575.8,3.88221]
[1729690019428,0.55,2576.1,2575.8,3.88221]
[1729690019634,4.4546635,2576.3,2576.0,0.7709]
[1729690020641,0.0230535,2576.3,2576.0,0.7709]
[1729690021173,3.9046235,2576.3,2576.1,0.19421785]
[1729690021334,0.0230535,2576.3,2576.0,0.7709]
[1729690021652,0.0230535,2576.3,2575.8,4.99328175]
[1729690021860,0.0230535,2576.3,2575.8,5.63803315]
[1729690022157,0.0230535,2576.3,2575.9,0.19423363]
[1729690022158,3.88168,2576.2,2575.9,0.19423363]
[1729690022332,3.88168,2576.2,2575.8,5.63803315]
[1729690022665,4.4545835,2576.3,2575.9,4.07636232]
[1729690022886,4.4545835,2576.3,2575.9,3.88213]
[1729690023232,8.3362235,2576.3,2576.0,0.19422512]
[1729690023575,8.3362235,2576.3,2575.9,3.88213]
[1729690024162,8.3362335,2576.3,2575.9,3.88213]
[1729690024335,3.88175,2576.2,2575.8,1.75589315]
[1729690024539,3.88175,2576.2,2575.9,0.19423659]
[1729690024740,3.88175,2576.2,2575.8,1.75589315]
[1729690025036,3.88175,2576.2,2575.9,0.19423573]
[1729690025259,3.88175,2576.2,2575.8,5.63811315]
[1729690025590,4.4546135,2576.3,2575.9,4.07634357]
[1729690025874,4.4546135,2576.3,2576.0,0.19423357]
[1729690026082,0.0230535,2576.3,2576.2,0.7765]
[1729690026374,0.0230535,2576.3,2576.2,0.97071239]
[1729690026576,0.0230535,2576.3,2576.2,0.97071344]
[1729690026747,0.0230535,2576.3,2576.2,4.85239344]
[1729690026965,0.0230535,2576.3,2576.2,1.84412578]
[1729690027291,0.0230535,2576.3,2576.2,1.84412686]
[1729690027497,0.0230535,2576.3,2576.2,5.72580686]
[1729690028248,0.0230535,2576.3,2576.2,5.72579433]
[1729690029964,0.05793657,2576.3,2576.2,5.72579433]
[1729690030993,0.0230535,2576.3,2576.2,5.72579433]
[1729690031179,0.05796802,2576.3,2576.2,5.72579433]
[1729690031493,0.05796791,2576.3,2576.2,5.80342001]
[1729690032097,0.0230535,2576.3,2576.2,5.80340845]
[1729690032299,0.05796802,2576.3,2576.2,5.80340845]
[1729690032499,0.0230535,2576.3,2576.2,5.80340845]
[1729690032869,0.05796791,2576.3,2576.2,5.72578277]
[1729690033069,0.05796791,2576.3,2576.2,5.80340844]
[1729690033579,0.0230535,2576.3,2576.2,5.81310844]
[1729690033968,0.0230535,2576.3,2576.2,5.73548277]
[1729690034366,0.05804721,2576.3,2576.2,5.81310339]
[1729690035106,0.0230535,2576.3,2576.2,5.81310339]
[1729690035404,0.05806293,2576.3,2576.2,5.73548277]
[1729690035579,0.0230535,2576.3,2576.2,9.34220548]
[1729690035786,3.88009,2577.3,2576.8,3.8807]
[1729690035986,3.8799,2577.4,2576.9,4.64381]
[1729690036169,3.8799,2577.4,2576.9,4.70201432]
[1729690036978,3.8799,2577.4,2577.0,3.8804]
[1729690037305,3.87988,2577.4,2576.9,0.82140432]
[1729690037477,7.75984,2577.4,2576.9,5.21102675]
[1729690037905,0.0231,2577.2,2576.9,0.05820432]
[1729690038182,3.88048,2577.0,2576.9,0.05820432]
[1729690038627,7.76086,2577.1,2576.9,0.05820432]
[1729690038831,3.88041,2577.1,2576.9,0.05820432]
[1729690039827,3.88048,2577.0,2576.9,0.05820432]
[1729690041526,3.90331,2577.2,2576.9,0.05820432]
[1729690041726,3.87997,2577.4,2576.9,0.05820432]
[1729690041957,4.43024,2577.2,2576.9,0.05820432]
[1729690043695,0.03421216,2577.1,2576.9,4.41414175]
[1729690044018,3.88023,2577.2,2576.9,0.53355175]
[1729690044214,0.03421176,2577.0,2576.9,0.53355175]
[1729690044432,3.88003,2577.3,2576.9,0.53355175]
[1729690044615,0.03421176,2577.0,2576.9,0.53355175]
[1729690044935,3.88003,2577.3,2576.9,0.53355175]
[1729690045240,3.93779187,2577.0,2576.9,0.05820432]
[1729690045547,3.90358,2577.0,2576.9,0.05820432]
[1729690045709,4.48801365,2577.0,2576.9,0.05820432]
[1729690045913,4.43105,2576.7,2576.4,0.19417355]
[1729690046210,4.43105,2576.7,2576.2,4.84424827]
[1729690046211,3.91558711,2576.6,2576.2,4.84424827]
[1729690046426,3.91552711,2576.6,2576.3,0.87260583]
[1729690046641,0.03442711,2576.6,2576.3,0.87260583]
[1729690046934,3.8813,2576.5,2576.3,0.87260583]
[1729690047136,3.8814,2576.4,2576.2,0.7684]
[1729690047307,3.91559194,2576.5,2576.3,0.05821157]
[1729690047508,0.03433165,2576.4,2576.3,0.05821157]
[1729690047910,3.9042,2576.6,2576.3,0.05821157]
[1729690048109,3.91555593,2576.5,2576.3,0.05821157]
[1729690048500,3.88138,2576.4,2576.3,0.05821157]
[1729690048700,4.46559564,2576.4,2576.3,0.05821157]
[1729690049758,0.58421564,2576.4,2576.3,0.05821157]
[1729690050058,4.46559564,2576.4,2576.3,0.05821157]
[1729690050211,0.58421564,2576.4,2576.3,0.05821157]
[1729690051111,4.46559564,2576.4,2576.3,0.05821157]
[1729690053605,0.03421564,2576.4,2576.3,0.05821157]
[1729690054345,0.03421564,2576.4,2576.1,3.8818]
[1729690054645,3.88132,2576.5,2576.2,0.6066603]
[1729690054856,3.88132,2576.5,2576.3,0.0582145]
[1729690055160,0.03413646,2576.4,2576.3,0.0582145]
[1729690055714,3.91551646,2576.4,2576.3,0.0582145]
[1729690057485,0.03413646,2576.4,2576.1,0.7843]
[1729690057649,0.03413646,2576.4,2576.2,0.68511323]
[1729690057849,3.8811,2576.6,2576.3,0.19420982]
[1729690058086,3.904,2576.8,2576.2,0.49090341]
[1729690058241,3.88117,2576.6,2576.3,0.19419396]
[1729690058580,3.9151871,2576.5,2576.4,0.05821507]
[1729690058785,0.0339571,2576.5,2576.4,0.05821507]
[1729690061481,3.9151871,2576.5,2576.4,0.05821507]
[1729690061850,0.0339571,2576.5,2576.4,0.05821507]
[1729690062053,0.0339571,2576.5,2576.4,0.25241988]
[1729690062241,0.0339571,2576.5,2576.4,0.2524104]
[1729690062438,0.0339571,2576.5,2576.4,0.05821507]
[1729690065582,5.61773199,2576.7,2576.4,0.05821507]
[1729690065739,0.03395754,2576.5,2576.4,0.05821507]
[1729690066567,0.03395754,2576.5,2576.2,3.88156]
[1729690066892,0.03395754,2576.5,2576.3,0.19420288]
[1729690067040,0.03395754,2576.5,2576.2,1.05272062]
[1729690067244,0.03395754,2576.5,2576.3,0.25241726]
[1729690067489,0.03395754,2576.5,2576.4,0.19419593]
[1729690067839,0.03395754,2576.5,2576.3,3.9396938]
[1729690068054,0.03395754,2576.5,2576.4,1.10586389]
[1729690068260,0.03395754,2576.5,2576.2,3.8816]
[1729690068475,0.03395754,2576.5,2576.3,0.19419929]
[1729690068647,0.03395754,2576.5,2576.4,0.19419929]
[1729690070286,0.03395754,2576.5,2576.4,0.94509929]
[1729690070555,5.64009199,2577.2,2576.6,3.881]
[1729690070759,3.88062,2577.0,2576.7,0.19419929]
[1729690070946,3.88062,2577.0,2576.5,4.63204]
[1729690071173,3.90337,2577.2,2576.8,0.0582082]
[1729690071371,0.0231,2577.2,2576.9,0.19416258]
[1729690071571,3.88033,2577.1,2576.8,0.0582082]
[1729690071896,3.88033,2577.1,2576.9,0.1941634]
[1729690072095,3.88033,2577.1,2576.8,0.0582082]
[1729690072295,1.73671199,2577.0,2576.8,0.0582082]
[1729690072464,5.61704199,2577.1,2576.8,0.0582082]
[1729690072792,4.43048,2577.0,2576.9,0.19416439]
[1729690072954,0.55,2576.9,2576.3,4.65885]
[1729690073158,1.73671199,2576.6,2576.4,0.19419881]
[1729690073378,3.90409,2576.7,2576.5,0.19419626]
[1729690073584,0.03395705,2576.5,2576.3,4.65885]